fUSD/lending_fUSD_20260309
["ID","MTS","AMOUNT","RATE_DAILY","PERIOD"]
[408028734,1773049840022,-500.0,0.00019999,2]
[408028735,1773049840031,-500.0,0.00019999,2]
[408028736,1773049840040,-500.0,0.00019999,2]
[408028737,1773049840049,-500.0,0.00019999,2]
[408028738,1773049840058,-500.0,0.00019999,2]
[408028739,1773049840067,-500.0,0.00019999,2]
[408028740,1773049840076,-500.0,0.00019999,2]
[408028741,1773049840085,-500.0,0.00019999,2]
[408028742,1773049840094,-504.66308381,0.00019999,2]
[408028744,1773049840103,-504.92020981,0.00019999,2]
[408028745,1773049840112,-500.0,0.00019999,2]
[408028746,1773049840121,-500.0,0.00019999,2]
[408028747,1773049840130,-500.0,0.00019999,2]
[408028748,1773049840140,-500.0,0.00019999,2]
[408028749,1773049840149,-500.0,0.00019999,2]
[408028750,1773049840158,-500.0,0.00019999,2]
[408028751,1773049840167,-437.89413426,0.00019999,2]
[408028752,1773049840176,-500.0,0.00019999,2]
[408028753,1773049840186,-500.0,0.00019999,2]
[408028754,1773049840195,-500.0,0.00019999,2]
[408028755,1773049840204,-500.0,0.00019999,2]
[408028756,1773049840213,-500.0,0.00019999,2]
[408028757,1773049840222,-500.0,0.00019999,2]
[408028758,1773049840231,-500.0,0.00019999,2]
[408028759,1773049840241,-500.0,0.00019999,2]
[408028760,1773049840250,-500.0,0.00019999,2]
[408028762,1773049840261,-500.0,0.00019999,2]
[408028764,1773049840270,-500.0,0.00019999,2]
[408028765,1773049840279,-500.0,0.00019999,2]
[408028766,1773049840289,-500.0,0.00019999,2]
[408028767,1773049840299,-500.0,0.00019999,2]
[408028768,1773049840308,-500.0,0.00019999,2]
[408028769,1773049840318,-150.0,0.00019999,2]
[408028770,1773049840328,-3000.0,0.00019999,2]
[408028771,1773049840338,-460.02488924,0.00019999,2]
[408028772,1773049840348,-172.01742246,0.00019999,2]
[408028773,1773049840357,-1880.0,0.0002,2]
[408028774,1773049840366,-1300.0,0.0002,2]
[408028775,1773049840375,-762375.93681754,0.0002,2]
[408028776,1773049840388,-1730.49568662,0.0002,2]
[408028777,1773049840614,-509.19457752,0.0002,2]
[408028778,1773049840625,-69174.15040617,0.0002,2]
[408028779,1773049840788,-3749.0,0.0001999,2]
[408028780,1773049840799,-500.0,0.00019998,2]
[408028781,1773049840809,-316101.87584978,0.0002,2]
[408028782,1773049840887,-362.045,0.00019664,2]
[408028789,1773049846161,-153.40246872,0.00019323,2]
[408028790,1773049846170,-920.56413811,0.00019664,2]
[408028791,1773049846182,-3102.34948791,0.00019664,2]
[408028792,1773049846194,-1043.21673513,0.00019664,2]
[408028793,1773049846204,-5428.17536115,0.00019703,2]
[408028794,1773049846213,-248.60790372,0.0002,2]
[408028795,1773049846446,-340.77464799,0.0002,2]
[408028796,1773049846465,-39218.3368558,0.0002,2]
[408028797,1773049846476,-269.79142468,0.0002,2]
[408028798,1773049846487,-10020.04256154,0.0002,2]
[408028799,1773049846498,-14121.47881074,0.0002,2]
[408028801,1773049906506,-500.0,0.00018356,7]
[408028802,1773049906539,-500.0,0.00018356,7]
[408028803,1773050051374,-506.0,0.00017,2]
[408028804,1773050067536,-500.0,0.00018356,7]
[408028805,1773050082760,1114.13,0.00015851,2]
[408028806,1773050186570,-500.0,0.00018356,7]
[408028807,1773050186602,-500.0,0.00018356,7]
[408028808,1773050273683,-500.0,0.00018356,7]
[408028809,1773050306139,-176.96,0.00018384,2]
[408028810,1773050391673,-200.94,0.00018386,2]
[408028811,1773050402463,506.0,0.00017,2]
[408028812,1773050406826,500.0,0.00018356,7]
[408028813,1773050425781,-175.0,0.00018386,2]
[408028814,1773050429086,166.66,0.0001744,2]
[408028815,1773050429310,166.66,0.00017807,2]
[408028816,1773050429498,166.66,0.00018174,2]
[408028817,1773050440838,-166.66,0.00018541,2]
[408028819,1773050491936,-2182.121971,0.00017,2]
[408028820,1773050555384,10000.01,9.5e-05,3]
[408028821,1773050555409,10000.01,9.5e-05,3]
[408028822,1773050555434,10000.01,9.5e-05,3]
[408028823,1773050555458,10000.01,9.5e-05,3]
[408028824,1773050555483,10000.01,9.5e-05,3]
[408028825,1773050555507,10000.01,9.5e-05,3]
[408028826,1773050555530,10000.01,9.5e-05,3]
[408028827,1773050555553,10000.01,9.5e-05,3]
[408028828,1773050555576,10000.01,9.5e-05,3]
[408028829,1773050555599,10000.01,9.5e-05,3]
[408028830,1773050555628,444657.62939648,9.5e-05,3]
[408028831,1773050555656,1278776.10479457,9.5e-05,3]
[408028832,1773050555682,172379.21066519,9.5e-05,3]
[408028833,1773050589532,150.71486247,0.0002,120]
[408028834,1773050672696,160.0,5e-05,14]
[408028835,1773050729126,157.27,9.07e-05,2]
[408028836,1773050729320,157.27,0.00010366,2]
[408028837,1773050729516,157.27,0.00011662,2]
[408028838,1773050736417,-157.27,0.00012958,2]
[408028839,1773050751368,-157.27,0.00014253,2]
[408028840,1773050784799,-167.6,0.00014,2]
[408028841,1773050825921,163.0,0.00015549,2]
[408028842,1773050838009,-157.27,0.00015549,2]
[408028843,1773050968421,483.07450823,0.0001454,2]
[408028844,1773050968712,483.07450823,0.0001454,2]
[408028845,1773050968998,483.07450823,0.0001454,2]
[408028846,1773050969292,483.07450823,0.0001454,2]
[408028847,1773050969565,483.07450823,0.0001454,2]
[408028848,1773050969862,483.07450823,0.0001454,2]
[408028849,1773050970143,483.07450823,0.0001454,2]
[408028850,1773050970433,483.07450823,0.0001454,2]
[408028851,1773050970749,483.07450823,0.0001454,2]
[408028852,1773050971033,483.07450823,0.0001454,2]
[408028853,1773050972222,483.07450823,0.0001454,2]
[408028854,1773050972271,483.07450823,0.0001454,2]
[408028855,1773050972318,483.07450823,0.0001454,2]
[408028856,1773050972367,483.07450823,0.0001454,2]
[408028857,1773050972556,483.07450823,0.0001454,2]
[408028858,1773050972892,483.07450823,0.0001454,2]
[408028859,1773050973181,483.07450823,0.0001454,2]
[408028860,1773050973462,483.07450823,0.0001454,2]
[408028861,1773050973756,483.07450823,0.0001454,2]
[408028862,1773050974051,483.07450823,0.0001454,2]
[408028863,1773050974342,23.9798354,0.0001454,2]
[408028864,1773050974365,459.09467283,0.0001454,2]
[408028867,1773051005691,169.0,0.00015549,2]
[408028881,1773051031481,-167.6,0.0001595,2]
[408028882,1773051031491,-283.0,0.0001595,2]
[408028883,1773051031502,-252.0,0.00016088,2]
[408028884,1773051031511,-300.0,0.00016225,2]
[408028885,1773051031521,-300.0,0.00016476,2]
[408028886,1773051031531,-335.17065721,0.000165,5]
[408028887,1773051031540,-2026.81,0.00016501,2]
[408028888,1773051031550,-195.0,0.00016584,2]
[408028889,1773051031562,-157.27,0.00016845,2]
[408028890,1773051031572,-1200.0,0.00016999,2]
[408028891,1773051031582,-505.0,0.00017,2]
[408028892,1773051031592,-503.00003,0.00017,2]
[408028893,1773051031601,-595.64,0.00017,2]
[408028894,1773051031611,-163.01,0.00017528,2]
[408028895,1773051031620,-195.0,0.00017545,2]
[408028896,1773051031630,-250.0,0.00017545,2]
[408028897,1773051031639,-2500.0,0.00017545,2]
[408028898,1773051031649,-179.49839145,0.00017545,2]
[408028899,1773051031658,-450.0,0.00017545,2]
[408028900,1773051031668,-300.36723807,0.00017545,2]
[408028901,1773051031677,-300.0,0.00017545,2]
[408028902,1773051031686,-195.0,0.00017545,2]
[408028903,1773051031696,-195.0,0.00017545,2]
[408028904,1773051031705,-241.25174727,0.00017545,2]
[408028905,1773051031714,-250.0,0.00017545,2]
[408028906,1773051031723,-500.0,0.0001758,2]
[408028907,1773051031733,-801.97398632,0.00017808,2]
[408028908,1773051031742,-1824.42,0.00017841,2]
[408028909,1773051031751,-300.0,0.00017899,2]
[408028910,1773051031761,-512.643642,0.000179,2]
[408028911,1773051031769,-512.643642,0.000179,2]
[408028912,1773051031778,-167.6,0.000179,2]
[408028913,1773051031788,-512.643642,0.00017907,2]
[408028914,1773051031797,-830.35193264,0.00017933,2]
[408028915,1773051031806,-200.479585,0.00018,2]
[408028916,1773051031816,-150.0,0.00018112,2]
[408028917,1773051031825,-157.27,0.00018141,2]
[408028918,1773051031835,-199.45738296,0.00018299,2]
[408028919,1773051031844,-512.643642,0.00018321,2]
[408028920,1773051031853,-500.0,0.00018356,7]
[408028921,1773051031862,-600.0,0.00018356,7]
[408028922,1773051031871,-1897.0,0.00018421,2]
[408028923,1773051031880,-198.62387425,0.00018421,2]
[408028924,1773051031889,-198.62387425,0.00018521,2]
[408028925,1773051031898,-3414.67,0.00018533,2]
[408028926,1773051031908,-2000.0,0.00018541,2]
[408028927,1773051031917,-850.0,0.00018612,2]
[408028928,1773051031935,-198.62387425,0.00018621,2]
[408028929,1773051031946,-1680.0,0.00018659,2]
[408028930,1773051031955,-847.0,0.0001872,2]
[408028931,1773051031965,-2644.0,0.0001872,2]
[408028932,1773051031975,-432.0,0.0001872,2]
[408028933,1773051031990,-2000.0,0.00018741,2]
[408028934,1773051032000,-209.5,0.00018759,2]
[408028935,1773051032012,-492.0,0.00018767,2]
[408028936,1773051032022,-999.92554896,0.00018771,2]
[408028937,1773051032032,-499.96277449,0.00018772,2]
[408028938,1773051032041,-499.96277447,0.00018802,2]
[408028939,1773051032051,-298.45,0.00018811,2]
[408028940,1773051032061,-499.96277447,0.00018833,2]
[408028941,1773051032070,-4119.9115,0.00018836,2]
[408028942,1773051032080,-23137.8938,0.00018852,2]
[408028943,1773051032093,-1004.70724777,0.00018852,2]
[408028944,1773051035706,-338.86,0.00018852,2]
[408028945,1773051035718,-646.7400861,0.00018852,2]
[408028977,1773051037392,-4761.72936613,0.00018852,2]
[408028978,1773051037402,-505.0,0.00018853,3]
[408028979,1773051037412,-499.96277447,0.00018863,2]
[408028980,1773051037422,-1033.8578594,0.00018863,2]
[408028981,1773051037445,-4638.6605524,0.00018863,2]
[408028982,1773051037455,-209.5,0.00018872,2]
[408028983,1773051037464,-649.70920927,0.00018884,2]
[408028984,1773051037474,-166.66,0.00018909,2]
[408028985,1773051037484,-1847.96,0.0001892,2]
[408028986,1773051037493,-2000.0,0.00018941,2]
[408028987,1773051037503,-500.0,0.00018941,2]
[408028988,1773051037512,-500.0,0.00018941,2]
[408028989,1773051037522,-500.0,0.00018941,2]
[408028990,1773051037531,-500.0,0.00018941,2]
[408028992,1773051037850,-500.0,0.00018941,2]
[408028993,1773051037859,-500.0,0.00018941,2]
[408028994,1773051037869,-500.0,0.00018941,2]
[408028995,1773051037879,-500.0,0.00018941,2]
[408028996,1773051037888,-500.0,0.00018941,2]
[408028997,1773051037897,-500.0,0.00018941,2]
[408028998,1773051037907,-500.0,0.00018941,2]
[408028999,1773051037916,-4067.72000362,0.00018942,2]
[408029000,1773051037925,-8000.0,0.00018952,2]
[408029001,1773051037934,-500.0,0.00018952,2]
[408029002,1773051037944,-8000.0,0.00018952,2]
[408029003,1773051037953,-8000.0,0.00018952,2]
[408029004,1773051037963,-500.0,0.00018952,2]
[408029005,1773051037972,-4508.89365093,0.00018952,2]
[408029006,1773051037981,-1386.28636175,0.00018952,2]
[408029007,1773051037990,-578.20924308,0.00018952,2]
[408029008,1773051037999,-3000.0,0.00018952,2]
[408029009,1773051038013,-250.0,0.00018952,2]
[408029010,1773051038023,-3000.0,0.00018952,2]
[408029011,1773051038032,-250.0,0.00018952,2]
[408029012,1773051038041,-3000.0,0.00018952,2]
[408029013,1773051038052,-250.0,0.00018952,2]
[408029014,1773051038061,-3000.0,0.00018952,2]
[408029015,1773051038070,-250.0,0.00018952,2]
[408029016,1773051038080,-3000.0,0.00018952,2]
[408029017,1773051038091,-250.0,0.00018952,2]
[408029018,1773051038100,-417.9161671,0.00018952,2]
[408029019,1773051038933,-7097.77858251,0.00018952,2]
[408029020,1773051038943,-2005.00000002,0.00018952,2]
[408029021,1773051038952,-1500.0,0.00018952,2]
[408029022,1773051038962,-250.0,0.00018952,2]
[408029023,1773051038972,-1500.0,0.00018952,2]
[408029024,1773051038981,-250.0,0.00018952,2]
[408029025,1773051038990,-1500.0,0.00018952,2]
[408029026,1773051038999,-250.0,0.00018952,2]
[408029027,1773051039011,-1500.0,0.00018952,2]
[408029028,1773051039020,-250.0,0.00018952,2]
[408029029,1773051039033,-151.0,0.00018952,2]
[408029030,1773051039042,-1500.0,0.00018952,2]
[408029031,1773051039054,-250.0,0.00018952,2]
[408029032,1773051039064,-1500.0,0.00018952,2]
[408029033,1773051039073,-250.0,0.00018952,2]
[408029034,1773051039086,-1500.0,0.00018952,2]
[408029035,1773051039096,-174.61919141,0.00018952,2]
[408029036,1773051039104,-1500.0,0.00018952,2]
[408029037,1773051039115,-1500.0,0.00018952,2]
[408029038,1773051039124,-1500.0,0.00018952,2]
[408029039,1773051039134,-1500.0,0.00018952,2]
[408029040,1773051039143,-1000.0,0.00018952,2]
[408029041,1773051039152,-1000.0,0.00018952,2]
[408029042,1773051039162,-1000.0,0.00018952,2]
[408029043,1773051039171,-1000.0,0.00018952,2]
[408029044,1773051039181,-1000.0,0.00018952,2]
[408029045,1773051039190,-1000.0,0.00018952,2]
[408029046,1773051039199,-1000.0,0.00018952,2]
[408029047,1773051039209,-1000.0,0.00018952,2]
[408029048,1773051039218,-1000.0,0.00018952,2]
[408029049,1773051039227,-1000.0,0.00018952,2]
[408029050,1773051039237,-1000.0,0.00018952,2]
[408029051,1773051039247,-1500.0,0.00018952,2]
[408029052,1773051039256,-1500.0,0.00018952,2]
[408029053,1773051039265,-1500.0,0.00018952,2]
[408029054,1773051039275,-1500.0,0.00018952,2]
[408029055,1773051039285,-1500.0,0.00018952,2]
[408029056,1773051039295,-1588.53467861,0.00018952,2]
[408029057,1773051039305,-262.90206542,0.00018952,2]
[408029058,1773051039315,-1500.0,0.00018952,2]
[408029059,1773051039324,-1500.0,0.00018952,2]
[408029061,1773051039334,-1500.0,0.00018952,2]
[408029062,1773051039343,-1500.0,0.00018952,2]
[408029063,1773051039353,-1500.0,0.00018952,2]
[408029064,1773051039363,-1500.0,0.00018952,2]
[408029065,1773051039372,-1500.0,0.00018952,2]
[408029067,1773051039381,-1500.0,0.00018952,2]
[408029069,1773051039391,-1500.0,0.00018952,2]
[408029070,1773051039400,-387.23461474,0.00018952,2]
[408029071,1773051039411,-5114.18757465,0.00018953,2]
[408029072,1773051039421,-999.92554895,0.00018963,2]
[408029073,1773051039430,-500.0,0.00018973,2]
[408029074,1773051039439,-500.0,0.00018973,2]
[408029075,1773051039449,-500.0,0.00018973,2]
[408029076,1773051039459,-5672.51841179,0.00018978,2]
[408029077,1773051039469,-209.5,0.00018985,2]
[408029078,1773051039478,-151.0,0.00019007,2]
[408029079,1773051039487,-161.77924979,0.00019014,2]
[408029080,1773051039497,-700.0,0.00019038,3]
[408029081,1773051039507,-5672.51841179,0.00019093,2]
[408029082,1773051039517,-209.5,0.00019097,2]
[408029083,1773051039526,-161.77924979,0.00019123,2]
[408029084,1773051039535,-2000.0,0.00019141,2]
[408029085,1773051039544,-253.0,0.00019154,2]
[408029086,1773051039554,-350.83,0.00019178,2]
[408029087,1773051039563,-1000.0,0.00019178,2]
[408029088,1773051039572,-1708.73595689,0.00019189,2]
[408029089,1773051039582,-431.86915122,0.00019208,2]
[408029090,1773051039591,-5672.51841179,0.00019209,2]
[408029091,1773051039600,-209.5,0.0001921,2]
[408029092,1773051039609,-161.77924979,0.00019233,2]
[408029093,1773051039619,-576.24721063,0.00019258,2]
[408029094,1773051039629,-253.0,0.0001926,2]
[408029095,1773051039906,-166.66,0.00019276,2]
[408029096,1773051039916,-153.45205626,0.0001928,2]
[408029097,1773051039925,-200.94,0.00019305,2]
[408029098,1773051039935,-209.5,0.00019323,2]
[408029099,1773051039944,-5672.51841179,0.00019324,2]
[408029100,1773051039954,-3935.35,0.00019325,2]
[408029101,1773051039963,-29462.8969,0.00019335,2]
[408029102,1773051039972,-1535.4773152,0.00019336,2]
[408029103,1773051039981,-2000.0,0.00019341,2]
[408029104,1773051039991,-2332.44209191,0.00019346,2]
[408029105,1773051040000,-253.0,0.00019354,2]
[408029106,1773051040014,-161.77924979,0.0001937,2]
[408029107,1773051040023,-253.0,0.00019413,2]
[408029108,1773051040033,-776.69281377,0.00019414,2]
[408029109,1773051040042,-162.63455783,0.00019425,2]
[408029110,1773051040052,-500.0,0.00019425,2]
[408029111,1773051040061,-162.63455784,0.00019425,2]
[408029112,1773051040070,-2332.44209185,0.00019425,2]
[408029113,1773051040079,-209.5,0.00019436,2]
[408029114,1773051040090,-5672.51841179,0.00019439,2]
[408029115,1773051040100,-8586.07896018,0.00019446,2]
[408029116,1773051040109,-302.2226,0.00019446,2]
[408029117,1773051040118,-8482.4506,0.00019446,2]
[408029118,1773051040128,-2500.0,0.00019446,2]
[408029119,1773051040138,-253.0,0.00019449,2]
[408029120,1773051040147,-500.0,0.00019452,7]
[408029121,1773051040157,-600.0,0.00019452,7]
[408029122,1773051040166,-500.0,0.00019452,2]
[408029123,1773051040175,-1000.0,0.00019452,2]
[408029124,1773051040184,-253.0,0.00019456,2]
[408029125,1773051040194,-161.77924979,0.00019479,2]
[408029126,1773051040203,-8586.07896013,0.00019496,2]
[408029127,1773051040212,-181.08010149,0.000195,2]
[408029128,1773051040221,-272.62944185,0.000195,2]
[408029129,1773051040231,-241.929196,0.000195,2]
[408029130,1773051040239,-2332.44209185,0.00019504,2]
[408029131,1773051040249,-1397.96,0.00019507,2]
[408029132,1773051040258,-688.9940742,0.00019521,2]
[408029133,1773051040267,-2000.0,0.00019541,2]
[408029135,1773051040276,-500.0,0.00019546,2]
[408029136,1773051040285,-500.0,0.00019546,2]
[408029137,1773051040295,-500.0,0.00019546,2]
[408029138,1773051040304,-500.0,0.00019546,2]
[408029139,1773051040314,-500.0,0.00019546,2]
[408029140,1773051040323,-500.0,0.00019546,2]
[408029141,1773051040332,-500.0,0.00019546,2]
[408029142,1773051040341,-500.0,0.00019546,2]
[408029143,1773051040351,-781.45,0.00019546,2]
[408029144,1773051040360,-500.0,0.00019546,2]
[408029145,1773051040370,-500.0,0.00019546,2]
[408029146,1773051040379,-32927.6463,0.00019546,2]
[408029147,1773051040389,-1000.0,0.00019546,2]
[408029148,1773051040399,-8586.07896013,0.00019547,2]
[408029149,1773051040408,-209.5,0.00019549,2]
[408029150,1773051040418,-5672.51841179,0.00019554,2]
[408029151,1773051040428,-500.0,0.00019573,2]
[408029152,1773051040437,-500.0,0.00019573,2]
[408029153,1773051040446,-500.0,0.00019573,2]
[408029154,1773051040455,-500.0,0.00019573,2]
[408029155,1773051040465,-500.0,0.00019573,2]
[408029156,1773051040475,-2332.44209185,0.00019583,2]
[408029157,1773051040485,-150.0,0.00019588,2]
[408029158,1773051040495,-161.77924979,0.00019589,2]
[408029159,1773051040504,-8586.07896013,0.00019597,2]
[408029160,1773051040514,-175.07643417,0.000196,2]
[408029161,1773051040524,-253.0,0.00019609,2]
[408029162,1773051040534,-500.0,0.00019618,2]
[408029163,1773051040543,-1672.0,0.00019618,2]
[408029164,1773051040553,-837.0,0.00019618,2]
[408029165,1773051040562,-500.0,0.00019618,2]
[408029166,1773051040571,-500.0,0.00019618,2]
[408029167,1773051040581,-150.0,0.00019618,2]
[408029168,1773051040590,-150.0,0.00019618,2]
[408029169,1773051040599,-769.0,0.00019618,2]
[408029170,1773051040608,-500.0,0.00019618,2]
[408029171,1773051040618,-500.0,0.00019618,2]
[408029172,1773051040627,-440.0,0.00019618,2]
[408029173,1773051040637,-500.0,0.00019618,2]
[408029174,1773051040646,-883.0,0.00019618,2]
[408029175,1773051040655,-150.0,0.00019618,2]
[408029176,1773051040664,-500.0,0.00019618,2]
[408029177,1773051040673,-500.0,0.00019618,2]
[408029178,1773051040682,-500.0,0.00019618,2]
[408029179,1773051040691,-500.0,0.00019618,2]
[408029180,1773051040700,-500.0,0.00019618,2]
[408029181,1773051040709,-150.0,0.00019618,2]
[408029182,1773051040719,-500.0,0.00019618,2]
[408029183,1773051040728,-150.0,0.00019618,2]
[408029184,1773051040738,-150.0,0.00019618,2]
[408029185,1773051040747,-500.0,0.00019618,2]
[408029186,1773051040756,-500.0,0.00019618,2]
[408029187,1773051040766,-500.0,0.00019618,2]
[408029188,1773051040775,-150.0,0.00019618,2]
[408029189,1773051040784,-500.0,0.00019618,2]
[408029190,1773051040793,-417.0,0.00019618,2]
[408029191,1773051040803,-500.0,0.00019618,2]
[408029192,1773051040813,-150.0,0.00019618,2]
[408029193,1773051040822,-150.0,0.00019618,2]
[408029194,1773051040831,-161.7233301,0.00019618,2]
[408029195,1773051040840,-500.0,0.00019618,2]
[408029196,1773051040850,-150.0,0.00019618,2]
[408029197,1773051040860,-150.0,0.00019618,2]
[408029198,1773051040869,-500.0,0.00019618,2]
[408029199,1773051040878,-150.0,0.00019618,2]
[408029200,1773051040888,-2962.42,0.00019618,2]
[408029201,1773051040897,-2962.42,0.00019618,2]
[408029202,1773051040906,-5310.51,0.00019618,2]
[408029203,1773051040915,-487.0,0.00019618,2]
[408029204,1773051040924,-785.51,0.00019618,2]
[408029205,1773051040934,-170.06448864,0.00019624,2]
[408029206,1773051040943,-557.0,0.00019635,2]
[408029207,1773051040952,-8586.07896013,0.00019648,2]
[408029208,1773051040961,-209.5,0.00019662,2]
[408029209,1773051040970,-5672.51841179,0.0001967,2]
[408029210,1773051040979,-500.0,0.00019673,2]
[408029211,1773051040988,-500.0,0.00019673,2]
[408029212,1773051040998,-1672.0,0.00019673,2]
[408029213,1773051041009,-837.0,0.00019673,2]
[408029214,1773051041018,-500.0,0.00019673,2]
[408029215,1773051041027,-553.29632904,0.00019673,2]
[408029216,1773051041037,-150.0,0.00019673,2]
[408029217,1773051041046,-150.0,0.00019673,2]
[408029218,1773051041058,-769.0,0.00019673,2]
[408029219,1773051041067,-500.0,0.00019673,2]
[408029220,1773051041076,-500.0,0.00019673,2]
[408029221,1773051041087,-440.0,0.00019673,2]
[408029222,1773051041096,-500.0,0.00019673,2]
[408029223,1773051041105,-883.0,0.00019673,2]
[408029224,1773051041114,-150.0,0.00019673,2]
[408029225,1773051041123,-500.0,0.00019673,2]
[408029226,1773051041133,-500.0,0.00019673,2]
[408029227,1773051041142,-500.0,0.00019673,2]
[408029228,1773051041151,-500.0,0.00019673,2]
[408029229,1773051041160,-500.0,0.00019673,2]
[408029230,1773051041169,-500.0,0.00019673,2]
[408029231,1773051041178,-150.0,0.00019673,2]
[408029232,1773051041187,-500.0,0.00019673,2]
[408029233,1773051041196,-500.0,0.00019673,2]
[408029234,1773051041205,-500.0,0.00019673,2]
[408029235,1773051041214,-500.0,0.00019673,2]
[408029236,1773051041223,-417.0,0.00019673,2]
[408029237,1773051041232,-500.0,0.00019673,2]
[408029238,1773051041241,-150.0,0.00019673,2]
[408029239,1773051041250,-150.0,0.00019673,2]
[408029240,1773051041260,-150.0,0.00019673,2]
[408029241,1773051041269,-500.0,0.00019673,2]
[408029242,1773051041278,-150.0,0.00019673,2]
[408029243,1773051041287,-500.0,0.00019673,2]
[408029244,1773051041297,-150.0,0.00019673,2]
[408029245,1773051041307,-985.0,0.00019673,2]
[408029246,1773051041316,-163.0,0.0001968,2]
[408029247,1773051041325,-3227.806,0.0001969,2]
[408029248,1773051041335,-8586.07896013,0.00019698,2]
[408029249,1773051041344,-253.0,0.00019708,2]
[408029250,1773051041353,-161.77924979,0.00019726,2]
[408029251,1773051041363,-1000.0,0.00019726,2]
[408029252,1773051041372,-500.0,0.00019727,2]
[408029253,1773051041381,-500.0,0.00019727,2]
[408029254,1773051041390,-500.0,0.00019727,2]
[408029255,1773051041400,-500.0,0.00019727,2]
[408029256,1773051041409,-500.0,0.00019728,2]
[408029257,1773051041418,-1672.0,0.00019728,2]
[408029258,1773051041428,-837.0,0.00019728,2]
[408029259,1773051041437,-500.0,0.00019728,2]
[408029260,1773051041447,-150.0,0.00019728,2]
[408029261,1773051041456,-769.0,0.00019728,2]
[408029262,1773051041466,-150.0,0.00019728,2]
[408029263,1773051041476,-500.0,0.00019728,2]
[408029264,1773051041485,-500.0,0.00019728,2]
[408029265,1773051041494,-440.0,0.00019728,2]
[408029266,1773051041504,-500.0,0.00019728,2]
[408029267,1773051041513,-883.0,0.00019728,2]
[408029268,1773051041523,-200.0,0.00019728,2]
[408029269,1773051041532,-500.0,0.00019728,2]
[408029270,1773051041542,-500.0,0.00019728,2]
[408029271,1773051041551,-400.0,0.00019728,2]
[408029272,1773051041561,-500.0,0.00019728,2]
[408029273,1773051041571,-500.0,0.00019728,2]
[408029274,1773051041581,-500.0,0.00019728,2]
[408029275,1773051041590,-150.0,0.00019728,2]
[408029276,1773051041599,-500.0,0.00019728,2]
[408029277,1773051041608,-500.0,0.00019728,2]
[408029278,1773051041618,-500.0,0.00019728,2]
[408029279,1773051041627,-500.0,0.00019728,2]
[408029280,1773051041636,-417.0,0.00019728,2]
[408029281,1773051041645,-500.0,0.00019728,2]
[408029282,1773051041655,-232.79888752,0.00019728,2]
[408029283,1773051041664,-152.96458514,0.00019728,2]
[408029284,1773051041674,-150.0,0.00019728,2]
[408029285,1773051041683,-300.0,0.00019728,2]
[408029286,1773051041693,-150.0,0.00019728,2]
[408029287,1773051041702,-500.0,0.00019728,2]
[408029288,1773051041711,-150.0,0.00019728,2]
[408029289,1773051041720,-1744.1212,0.00019736,2]
[408029290,1773051041729,-3935.35,0.00019739,2]
[408029291,1773051041738,-8586.07896013,0.00019749,2]
[408029292,1773051041747,-378.79,0.00019767,2]
[408029293,1773051041757,-1508.0,0.00019774,2]
[408029294,1773051041766,-209.5,0.00019774,2]
[408029295,1773051041775,-150.0,0.00019782,2]